[Event "German Bundesliga 2024-25"]
[Site "Germany"]
[Date "2024.10.05"]
[Round "1.9"]
[White "Bluebaum, Matthias"]
[Black "Narayanan S L"]
[Result "1/2-1/2"]
[Annotator "TA"]
[ECO "D32"]
[WhiteElo "2646"]
[BlackElo "2640"]
[PlyCount "47"]
[EventDate "2024.09.27"]
[EventType "team-tourn"]
[EventCountry "GER"]
[SourceTitle "playchess.com"]
[Source "ChessBase"]
[SourceQuality "1"]
[WhiteTeam "Deizisau"]
[BlackTeam "Deggendorf"]
[TimeControl "40/5400+30:1800+30"]

{[%evp 16,47,22,9,7,7,36,35,31,35,37,30,31,18,31,15,36,38,50,5,21,0,18,0,0,0,0,0,0,0,0,0,0,0]} 1. Nf3 {[%emt 0:00:04]} Nf6 {[%emt 0:00:29]} 2. c4 {[%emt 0:00:13]} c5 {[%emt 0:00:07]} 3. Nc3 {[%emt 0:00:21]} Nc6 {[%emt 0:00:15]} 4. e3 {[%emt 0:00:57]} e6 {[%emt 0:00:45]} 5. d4 {[%emt 0:00:18]} d5 {[%emt 0:00:06]} 6. cxd5 {[%emt 0:00:51]} exd5 {[%emt 0:00:07]} 7. Bb5 {[%emt 0:00:05]} cxd4 {[%emt 0:00:42]} 8. Nxd4 {[%emt 0:00:27]} Bd7 {[%emt 0:00:22]} 9. O-O {[%emt 0:00:11]} Bd6 {[%emt 0:00:23]} 10. Nf3 {[%emt 0:00:30][%cal Oe3e4]} a6 {[%emt 0:03:51]} 11. Bxc6 {[%emt 0:05:14]} Bxc6 {[%emt 0:00:29] White is slightly better.} 12. b3 {[%emt 0:00:34]} O-O {[%emt 0:00:43]} 13. Bb2 {[%emt 0:00:06]} Re8 {[%emt 0:05:23]} 14. Qd4 {[%emt 0:07:19]} Qe7 {[%emt 0:04:37]} 15. Rfd1 {[%emt 0:05:08]} Rad8 {[%emt 0:07:12]} 16. Ne2 {[%emt 0:08:18]} Bc5 {[%emt 0:10:49]} 17. Qf4 {[%emt 0:03:53]} Ne4 {[%emt 0:00:34][%cal Oe4f2] [#] Threatens to win with ...Nxf2! The position is equal.} 18. Ng3 {[%emt 0:10:27]} Nxg3 {[%emt 0:07:26]} (18... Nxf2 $5 19. Nf5 Nxd1 (19... Qe4 $2 20. Qg5 $18) 20. Nxe7+ Rxe7 $14) 19. Qxg3 {[%emt 0:02:14][%csl Gb2][%cal Rg3g7]} f6 {[%emt 0:00:42]} 20. Nd4 {[%emt 0:02:53]} Bd7 {[%emt 0:01:18]} 21. Ne2 {[%emt 0:06:33]} Bb5 {[%emt 0:08:16] This pair of bishops is nice.} 22. Nd4 {[%emt 0:05:25]} Bd7 {[%emt 0:01:24]} 23. Ne2 {[%emt 0:04:55]} Bb5 {[%emt 0:00:14]} 24. Nd4 {[%emt 0:01:16] Weighted Error Value: White=0.08 (flawless) /Black=0.07 (flawless) .  Inaccurate:     	White=1     	Black=1      OK:         	White=7     	Black=5      Best:        	---       	Black=1} 1/2-1/2

[Event "German Bundesliga 2024-25"]
[Site "Germany"]
[Date "2024.10.05"]
[Round "1.10"]
[White "Ghosh, Diptayan"]
[Black "Gledura, Benjamin"]
[Result "1/2-1/2"]
[Annotator "TA"]
[ECO "E45"]
[WhiteElo "2566"]
[BlackElo "2639"]
[PlyCount "43"]
[EventDate "2024.09.27"]
[EventType "team-tourn"]
[EventCountry "GER"]
[SourceTitle "playchess.com"]
[Source "ChessBase"]
[SourceQuality "1"]
[WhiteTeam "Deggendorf"]
[BlackTeam "Deizisau"]
[TimeControl "40/5400+30:1800+30"]

{[%evp 13,43,37,22,28,11,15,21,17,29,14,26,15,20,11,20,19,20,14,6,9,8,11,12,10,4,10,11,8,9,14,14,5]} 1. d4 {[%emt 0:00:25]} Nf6 {[%emt 0:00:11]} 2. c4 {[%emt 0:00:15]} e6 {[%emt 0:00:19]} 3. Nc3 {[%emt 0:00:17]} Bb4 {[%emt 0:00:18]} 4. e3 {[%emt 0:00:24]} b6 {[%emt 0:00:22]} 5. Nge2 {[%emt 0:01:19]} Ba6 {[%emt 0:00:33]} 6. a3 {[%emt 0:00:28]} Be7 {[%emt 0:00:57]} 7. Nf4 {[%emt 0:01:27]} O-O {[%emt 0:00:20]} 8. Bd3 {[%emt 0:05:29]} d5 {[%emt 0:00:34]} 9. cxd5 {[%emt 0:03:43]} Bxd3 {[%emt 0:00:19]} 10. Qxd3 {[%emt 0:00:05]} exd5 {[%emt 0:00:23]} 11. O-O {[%emt 0:00:11]} Bd6 {[%emt 0:02:11]} 12. Ncxd5 {[%emt 0:12:43]} Nxd5 {[%emt 0:00:19] The position is equal.} 13. Nxd5 {[%emt 0:00:04] Threatens to win with e4.} Bxh2+ $1 {[%emt 0:00:11]} 14. Kxh2 {[%emt 0:00:04]} Qxd5 {[%emt 0:00:07]} 15. e4 {[%emt 0:02:08]} Qd6+ {[%emt 0:00:12]} 16. Kg1 {[%emt 0:07:16]} c5 {[%emt 0:00:50]} 17. Rd1 {[%emt 0:07:18][%cal Bf1d1,Bd1d4,Bd4d6][%mdl 32]} cxd4 {[%emt 0:19:26]} 18. Qxd4 {[%emt 0:00:17]} Qxd4 {[%emt 0:09:28]} 19. Rxd4 {[%emt 0:00:36]} Nc6 {[%emt 0:00:07]} 20. Rd6 {[%emt 0:07:05]} Rac8 {[%emt 0:01:22]} 21. Bf4 {[%emt 0:03:57]} Rfd8 {[%emt 0:01:15]} 22. Rxd8+ {[%emt 0:09:01] An uneventful encounter.   Weighted Error Value: White=0.03 (flawless) /Black=0.02 (flawless) .  OK:         	White=5     	Black=9      Strong:       	---       	Black=1} 1/2-1/2

[Event "German Bundesliga 2024-25"]
[Site "Germany"]
[Date "2024.10.05"]
[Round "1.11"]
[White "Banusz, Tamas"]
[Black "Sankalp Gupta"]
[Result "0-1"]
[Annotator "TA"]
[ECO "A13"]
[WhiteElo "2591"]
[BlackElo "2534"]
[PlyCount "122"]
[EventDate "2024.09.27"]
[EventType "team-tourn"]
[EventCountry "GER"]
[SourceTitle "playchess.com"]
[Source "ChessBase"]
[SourceQuality "1"]
[WhiteTeam "Deizisau"]
[BlackTeam "Deggendorf"]
[TimeControl "40/5400+30:1800+30"]

{[%evp 35,122,20,56,37,47,-58,-53,-108,-124,-120,-114,-105,-116,-106,-101,-101,-69,-106,-102,-99,-99,-114,-119,-114,-113,-116,-107,-115,-97,-163,-168,-170,-142,-212,-213,-270,-188,-187,-187,-180,-176,-195,-197,-242,-233,-240,-235,-302,-302,-341,-337,-343,-342,-333,-284,-352,-349,-395,-395,-398,-386,-429,-401,-422,-413,-375,-263,-324,-321,-329,-316,-355,-341,-339,-329,-514,-363,-362,-362,-369,-374,-374,-374,-603,-352,-5587,-5137,-1880,-1867]} 1. c4 {[%emt 0:00:07]} e6 {[%emt 0:03:53]} 2. g3 {[%emt 0:00:55]} d5 {[%emt 0:00:41]} 3. Bg2 {[%emt 0:00:07]} d4 {[%emt 0:01:50]} 4. Nf3 {[%emt 0:01:12]} Nf6 {[%emt 0:01:02]} 5. d3 {[%emt 0:04:21]} Bb4+ {[%emt 0:03:32]} 6. Bd2 {[%emt 0:03:34] A13: English Opening: 1...e6.} a5 {[%emt 0:02:19]} 7. O-O {[%emt 0:00:50]} O-O {[%emt 0:00:05]} 8. e3 {[%emt 0:01:57]} Bxd2 {[%emt 0:09:18]} 9. Qxd2 {[%emt 0:00:15]} Nc6 {[%emt 0:00:06]} 10. Re1 {[%emt 0:07:12]} e5 {[%emt 0:02:42]} 11. exd4 {[%emt 0:01:37]} exd4 {[%emt 0:00:12]} 12. Na3 {[%emt 0:00:53]} Nd7 {[%emt 0:06:49]} 13. Nb5 $146 {[%emt 0:09:35]} ({Predecessor:} 13. Nc2 Nc5 14. Ne5 Qd6 15. f4 Nxe5 16. Rxe5 c6 17. b4 Nd7 18. Rxa5 Rxa5 19. bxa5 {1-0 Fernandez,D (2529)-Kanyamarala,T (2344) Newcastle Northumbria Masters GM 2023 (8)}) 13... Nc5 {[%emt 0:00:28]} 14. Rad1 {[%emt 0:08:50]} Ra6 {[%emt 0:23:50]} 15. Qg5 {[%emt 0:15:51]} Qxg5 {[%emt 0:07:35]} 16. Nxg5 {[%emt 0:00:14]} Nb4 {[%emt 0:00:42]} 17. Nxc7 {[%emt 0:02:59]} Rg6 {[%emt 0:00:22]} 18. Nf3 {[%emt 0:07:41]} Nbxd3 {[%emt 0:00:51]} 19. Re2 {[%emt 0:02:46]} Bg4 {[%emt 0:02:14]} 20. Nd5 {[%emt 0:01:15]} ({White should play} 20. h3 $14 Bxf3 21. Bxf3) 20... Re6 $15 {[%emt 0:01:16]} 21. Rdd2 {[%emt 0:08:16]} (21. Red2 $15 Ne5 22. Nxd4 Bxd1 23. Rxd1) 21... Bxf3 $17 {[%emt 0:02:30]} 22. Bxf3 {[%emt 0:00:08]} Ne5 {[%emt 0:00:02]} 23. Rxe5 {[%emt 0:02:58]} Rxe5 {[%emt 0:00:03]} 24. Rxd4 {[%emt 0:00:08]} Re1+ {[%emt 0:04:28]} 25. Kg2 {[%emt 0:00:01]} h6 {[%emt 0:00:08]} 26. Nc3 {[%emt 0:05:08]} Rfe8 {[%emt 0:00:30]} 27. h4 {[%emt 0:01:31]} Rc1 {[%emt 0:00:58]} 28. Rd5 {[%emt 0:01:02]} b6 {[%emt 0:01:59]} 29. Rd2 {[%emt 0:01:46]} Kf8 {[%emt 0:00:07]} 30. h5 {[%emt 0:01:49]} Rb8 {[%emt 0:04:46]} 31. Bd1 {[%emt 0:00:51]} Ne6 {[%emt 0:02:28]} 32. Ba4 {[%emt 0:03:49]} (32. a3 $17) 32... Rd8 $19 {[%emt 0:00:54]} 33. Re2 {[%emt 0:00:04]} Rd4 {[%emt 0:03:24]} 34. Bb3 {[%emt 0:03:49]} (34. Bb5 $17 {is a better defense.}) 34... Nc5 $19 {[%emt 0:03:18]} 35. Na4 {[%emt 0:01:58]} Nxa4 {[%emt 0:06:59]} 36. Bxa4 {[%emt 0:00:01]} Rd8 {[%emt 0:00:05]} (36... Rdxc4 37. Re8#) 37. b3 {[%emt 0:00:41]} Rcd1 {[%emt 0:00:43]} 38. Re5 {[%emt 0:01:32]} R1d2 {[%emt 0:00:01]} 39. c5 {[%emt 0:01:11]} bxc5 {[%emt 0:01:03]} (39... Rxa2 40. cxb6 Rb8 41. b7 $11) 40. Rxc5 {[%emt 0:00:03]} R2d5 {[%emt 0:00:04]} 41. Rc7 {[%emt 0:05:42]} Rxh5 {[%emt 0:00:36]} 42. Rb7 {[%emt 0:00:03]} Rd2 {[%emt 0:05:55]} 43. Rb8+ {[%emt 0:00:24]} Ke7 {[%emt 0:00:02]} 44. Rb7+ {[%emt 0:00:05]} Ke6 {[%emt 0:00:04]} (44... Kf6 45. Be8) 45. Rb6+ {[%emt 0:00:00]} Rd6 {[%emt 0:06:03]} 46. Rb7 {[%emt 0:01:55]} Rf5 {[%emt 0:00:12]} 47. f4 {[%emt 0:00:51]} Rd2+ {[%emt 0:01:43]} 48. Kh3 {[%emt 0:01:02]} Rh5+ {[%emt 0:02:34]} (48... Rxa2 $2 {loses.} 49. Bd7+ Kf6 50. Rb6+ Ke7 51. Bxf5 $18) 49. Kg4 {[%emt 0:00:12]} Rhh2 {[%emt 0:00:02]} 50. Bb5 {[%emt 0:02:40]} f5+ {[%emt 0:02:44]} (50... Rxa2 $2 51. Bc4+ Kd6 52. Rxf7 $19) 51. Kf3 {[%emt 0:00:01]} g5 {[%emt 0:00:06]} 52. Bc4+ {[%emt 0:00:28]} Kd6 {[%emt 0:00:37]} 53. fxg5 {[%emt 0:01:17]} hxg5 {[%emt 0:00:10]} ({And not} 53... Rxa2 54. Rb6+ Kc7 55. Rxh6 $11) 54. Rb6+ {[%emt 0:00:05]} Kc7 {[%emt 0:09:26]} 55. Rg6 {[%emt 0:01:03]} (55. Rb5 {was worth a try.}) 55... Rhf2+ {[%emt 0:01:58]} 56. Ke3 {[%emt 0:00:02]} f4+ {[%emt 0:01:11]} (56... Rxa2 57. Rxg5 Rh2 58. Rxf5 $11) 57. gxf4 {[%emt 0:00:04]} gxf4+ {[%emt 0:00:03]} ({Not} 57... Rxa2 58. Rxg5 Rfc2 59. Rg7+ Kd6 60. Rg6+ Kd7 61. f5 $11) 58. Ke4 {[%emt 0:00:11]} Rxa2 {[%emt 0:00:20]} 59. Kd5 $2 {[%emt 0:00:22]} (59. Rf6) 59... Rad2+ {[%emt 0:00:29]} 60. Kc5 $2 {[%emt 0:00:03]} (60. Ke4) 60... Rg2 $19 {[%emt 0:00:55]} 61. Rc6+ {[%emt 0:00:02]} Kd7 {[%emt 0:00:12]} 0-1

[Event "German Bundesliga 2024-25"]
[Site "Germany"]
[Date "2024.10.05"]
[Round "1.12"]
[White "Krivoborodov, Egor"]
[Black "Gupta, Abhijeet"]
[Result "0-1"]
[Annotator "TA"]
[ECO "D00"]
[WhiteElo "2555"]
[BlackElo "2573"]
[PlyCount "48"]
[EventDate "2024.09.27"]
[EventType "team-tourn"]
[EventCountry "GER"]
[SourceTitle "playchess.com"]
[Source "ChessBase"]
[SourceQuality "1"]
[WhiteTeam "Deggendorf"]
[BlackTeam "Deizisau"]
[TimeControl "40/5400+30:1800+30"]

{[%evp 9,48,0,0,-8,-7,-14,-19,-4,0,0,-1,-25,0,-11,0,0,0,-55,-35,-48,62,-102,-105,-110,-112,-122,-120,-119,-63,-120,-125,-224,-233,-241,-233,-245,-232,-360,-363,-602,-600]} 1. d4 {[%emt 0:00:04]} Nf6 {[%emt 0:00:11]} 2. Bg5 {[%emt 0:00:15]} d5 {[%emt 0:00:49]} 3. Nd2 {[%emt 0:00:32]} Bf5 {[%emt 0:02:16]} 4. e3 {[%emt 0:09:19]} Nbd7 {[%emt 0:04:32]} 5. c4 {[%emt 0:09:10]} e6 {[%emt 0:00:27]} 6. Qb3 {[%emt 0:00:17]} Be7 {[%emt 0:01:12]} 7. Ngf3 {[%emt 0:01:04]} O-O {[%emt 0:03:43]} 8. Be2 {[%emt 0:04:49] The position is equal.} c5 {[%emt 0:08:16]} 9. Qxb7 {[%emt 0:25:23]} (9. O-O {simplifies} cxd4 10. Bxf6 Bxf6 11. Nxd4 dxc4 12. Nxc4 Be4 13. Rfd1) 9... cxd4 {[%emt 0:04:08]} 10. exd4 {[%emt 0:01:17]} Rb8 {[%emt 0:03:54]} 11. Qxa7 {[%emt 0:00:53]} Rxb2 {[%emt 0:03:22] Hoping for ...Ne4.} (11... dxc4 {simplifies} 12. Bxc4 Rxb2 13. O-O Bb4) 12. c5 $1 {[%emt 0:35:43]} Ne4 {[%emt 0:11:33]} 13. Be3 {[%emt 0:04:40] [#]} ({White should try} 13. Bxe7 $11 Qxe7 14. Qa3) 13... e5 $1 $15 {[%emt 0:17:56] ...exd4 is the strong threat.} 14. c6 {[%emt 0:01:42]} (14. Qa3 Rc2) 14... exd4 {[%emt 0:01:03]} (14... Nxd2 $15 15. Nxd2 Nb6) 15. Bxd4 $2 {[%emt 0:00:49]} (15. Qxd4 $14 {keeps the upper hand.} Bf6 16. Qxd5) 15... Bc5 $36 {[%emt 0:00:41][%mdl 2048] Black is really pushing. Really sharp!} 16. Bxc5 {[%emt 0:00:41]} Ndxc5 {[%emt 0:00:04]} 17. O-O {[%emt 0:01:13] [#] aiming for Nxe4.} Nxd2 {[%emt 0:01:57]} 18. Qxc5 {[%emt 0:00:47] Strongly threatening Nxd2.} Nxf1 {[%emt 0:00:22]} (18... Rc2 $17 19. Qe3 Nxf1 20. Bxf1 Rxc6) 19. Bxf1 {[%emt 0:00:16]} (19. c7 $2 Qf6 20. Bxf1 Rc2 $19) (19. Nd4 $1 $15 Rxe2 20. Nxe2) 19... Rc2 {[%emt 0:00:54]} 20. Qb5 {[%emt 0:00:04]} (20. Qe3 $17 {was worth a try.} Rxc6 21. Nd4) 20... Qf6 $19 {[%emt 0:00:58][%csl LRa1,LRc6]} 21. Rd1 {[%emt 0:00:05]} Be4 {[%emt 0:01:25]} ({Don't take} 21... Rxc6 22. a4) 22. Nd2 {[%emt 0:01:25]} h6 {[%emt 0:03:28]} ({Don't do} 22... Rxa2 23. Nxe4 dxe4 24. Qc5) 23. a4 {[%emt 0:00:35]} (23. Qa4 {was called for.} Qxc6 (23... Rxc6 $2 24. Nxe4 dxe4 25. Qxe4 $19) 24. Qxc6 Rxc6 25. Nxe4 dxe4 26. g4) 23... Qd4 {[%emt 0:01:12]} (23... Rxc6 $2 24. Nxe4 dxe4 25. Qe2 $19) ({Much less strong is} 23... Qxc6 24. Qxc6 Rxc6 25. Nxe4 dxe4 26. Re1 $19) 24. Nxe4 {[%emt 0:00:54]} (24. Qe2 Qxa4 (24... Rxc6 $2 25. Nxe4 Qxe4 26. Qb5 $19) 25. c7) 24... Qxd1 {[%emt 0:00:06] Weighted Error Value: White=0.51/Black=0.17 (very precise) .  Mistake:       	White=6     	Black=2      OK:         	White=6     	Black=8      Best:        	White=1     	Black=3      Strong:       	White=1     	---} 0-1

[Event "German Bundesliga 2024-25"]
[Site "Germany"]
[Date "2024.10.05"]
[Round "1.13"]
[White "Dautov, Rustem"]
[Black "Petrov, Martin"]
[Result "1/2-1/2"]
[Annotator "TA"]
[ECO "E11"]
[WhiteElo "2570"]
[BlackElo "2538"]
[PlyCount "41"]
[EventDate "2024.09.27"]
[EventType "team-tourn"]
[EventCountry "GER"]
[SourceTitle "playchess.com"]
[Source "ChessBase"]
[SourceQuality "1"]
[WhiteTeam "Deizisau"]
[BlackTeam "Deggendorf"]
[TimeControl "40/5400+30:1800+30"]

{[%evp 10,40,14,25,16,10,22,17,21,23,27,24,19,13,17,15,23,0,2,0,0,7,10,0,19,0,0,0,-15,-13,-6,-13,0]} 1. d4 {[%emt 0:00:04]} Nf6 {[%emt 0:00:09]} 2. c4 {[%emt 0:00:08]} e6 {[%emt 0:00:06]} 3. Nf3 {[%emt 0:00:13]} Bb4+ {[%emt 0:00:18]} 4. Bd2 {[%emt 0:00:28]} Qe7 {[%emt 0:03:14]} 5. g3 {[%emt 0:01:21]} Bxd2+ {[%emt 0:00:11]} 6. Qxd2 {[%emt 0:02:09]} Nc6 {[%emt 0:00:07]} 7. Nc3 {[%emt 0:01:31]} d5 {[%emt 0:00:05]} 8. cxd5 {[%emt 0:14:16]} exd5 {[%emt 0:00:05]} 9. Bg2 {[%emt 0:00:06]} O-O {[%emt 0:00:22]} 10. O-O {[%emt 0:00:06]} Re8 {[%emt 0:00:03]} 11. e3 {[%emt 0:01:44]} Bf5 {[%emt 0:04:30]} 12. Nh4 {[%emt 0:09:37]} Be6 {[%emt 0:00:07]} 13. a3 {[%emt 0:13:55]} a6 {[%emt 0:00:17] The position is equal.} 14. Qc2 {[%emt 0:02:01]} Na7 {[%emt 0:05:17]} 15. Nf3 {[%emt 0:05:45]} Nb5 {[%emt 0:05:50]} 16. Ne5 {[%emt 0:06:51]} Nd6 {[%emt 0:01:10]} 17. Na4 {[%emt 0:02:33]} c6 {[%emt 0:06:42]} 18. Nc5 {[%emt 0:00:17]} Bf5 {[%emt 0:00:20]} 19. Qe2 {[%emt 0:02:04]} Nfe4 {[%emt 0:02:27]} 20. Nxe4 {[%emt 0:04:19]} Bxe4 {[%emt 0:05:40]} 21. Bxe4 {[%emt 0:05:24] Not much happened in this game.   Weighted Error Value: White=0.05 (flawless) /Black=0.04 (flawless) .  OK:         	White=5     	Black=6} 1/2-1/2

[Event "German Bundesliga 2024-25"]
[Site "Germany"]
[Date "2024.10.05"]
[Round "1.14"]
[White "Delchev, Aleksander"]
[Black "Heimann, Andreas"]
[Result "1/2-1/2"]
[Annotator "TA"]
[ECO "C54"]
[WhiteElo "2473"]
[BlackElo "2556"]
[PlyCount "40"]
[EventDate "2024.09.27"]
[EventType "team-tourn"]
[EventCountry "GER"]
[SourceTitle "playchess.com"]
[Source "ChessBase"]
[SourceQuality "1"]
[WhiteTeam "Deggendorf"]
[BlackTeam "Deizisau"]
[TimeControl "40/5400+30:1800+30"]

{[%evp 17,40,12,34,15,47,34,30,19,25,40,43,23,31,23,18,20,31,20,22,17,17,20,26,0,0]} 1. e4 {[%emt 0:00:29]} e5 {[%emt 0:00:06]} 2. Nf3 {[%emt 0:00:08]} Nc6 {[%emt 0:00:03]} 3. Bc4 {[%emt 0:00:47]} Nf6 {[%emt 0:00:28]} 4. d3 {[%emt 0:00:07]} Bc5 {[%emt 0:00:05]} 5. c3 {[%emt 0:01:16]} O-O {[%emt 0:03:27]} 6. O-O {[%emt 0:00:45]} d6 {[%emt 0:00:05]} 7. Bg5 {[%emt 0:01:48]} h6 {[%emt 0:00:17]} 8. Bh4 {[%emt 0:00:06]} a6 {[%emt 0:01:58]} 9. a4 {[%emt 0:04:49]} Ba7 {[%emt 0:04:44]} 10. Nbd2 {[%emt 0:05:01][%cal Bb1d2,Bd2c4,Bc4e3][%mdl 32]} Qe7 {[%emt 0:03:19]} 11. b4 {[%emt 0:07:33]} Be6 {[%emt 0:02:53]} 12. Rb1 {[%emt 0:14:37] White has an edge.} Bxc4 {[%emt 0:10:09]} 13. Nxc4 {[%emt 0:00:22]} b5 {[%emt 0:00:05]} 14. Ne3 {[%emt 0:04:00]} Qe6 {[%emt 0:00:20] Inhibits Nd5.} 15. Bxf6 {[%emt 0:04:48]} Qxf6 {[%emt 0:00:15]} 16. Nd5 {[%emt 0:00:05][%csl LRc7,LRf6]} Qd8 {[%emt 0:00:20]} 17. Ra1 {[%emt 0:06:52]} Ne7 {[%emt 0:02:05]} 18. Nxe7+ {[%emt 0:01:15]} Qxe7 {[%emt 0:00:05]} 19. Qb3 {[%emt 0:00:07]} c6 {[%emt 0:08:28]} 20. axb5 {[%emt 0:01:27]} axb5 {[%emt 0:00:05] Weighted Error Value: White=0.10 (very precise) /Black=0.09 (flawless) .  Inaccurate:     	White=1     	Black=1      OK:         	White=2     	Black=3} 1/2-1/2